fUST/lending_fUST_20250130
["ID","MTS","AMOUNT","RATE_DAILY","PERIOD"]
[350894888,1738180235778,-500.0,0.00016438,2]
[350894889,1738180235787,-564.6,0.00016438,2]
[350894890,1738180235797,-500.0,0.00016438,2]
[350894891,1738180235807,-500.0,0.00016438,2]
[350894892,1738180235816,-852.86,0.00016438,2]
[350894893,1738180235826,-500.0,0.00016438,2]
[350894894,1738180235836,-500.0,0.00016438,2]
[350894895,1738180235845,-500.0,0.00016438,2]
[350894896,1738180235854,-500.0,0.00016438,2]
[350894897,1738180235864,-500.0,0.00016438,2]
[350894898,1738180235873,-500.0,0.00016438,2]
[350894899,1738180235883,-500.0,0.00016438,2]
[350894900,1738180235892,-500.0,0.00016438,2]
[350894901,1738180235902,-500.0,0.00016438,2]
[350894902,1738180235911,-500.0,0.00016473,2]
[350894903,1738180235920,-500.0,0.00016473,2]
[350894904,1738180235929,-501.96680886,0.00016473,2]
[350894905,1738180235943,-550.38,0.00016499,2]
[350894906,1738180235952,-550.38,0.00016499,2]
[350894907,1738180235962,-550.38,0.00016499,2]
[350894908,1738180235971,-550.38,0.00016499,2]
[350894909,1738180235980,-550.38,0.00016499,2]
[350894910,1738180235990,-550.38,0.00016499,2]
[350894911,1738180236002,-550.38,0.00016499,2]
[350894912,1738180236012,-550.38,0.00016499,2]
[350894913,1738180236021,-550.38,0.00016499,2]
[350894914,1738180236031,-550.38,0.00016499,2]
[350894915,1738180236041,-550.38,0.00016499,2]
[350894916,1738180236051,-550.38,0.00016499,2]
[350894917,1738180236061,-550.38,0.00016499,2]
[350894918,1738180236072,-550.56,0.00016499,2]
[350894919,1738180236082,-63185.22450249,0.000165,2]
[350894920,1738180236100,-30680.58868254,0.000165,2]
[350894921,1738180236112,-19748.48661224,0.000165,2]
[350894922,1738180236125,-1918.53109479,0.000165,2]
[350894923,1738180236136,-7110.70047902,0.000165,2]
[350895001,1738180238499,-77355.27125051,0.000165,2]
[350895003,1738180238509,-185.484,0.00016563,2]
[350895005,1738180238518,-500.0,0.00016573,2]
[350895007,1738180238529,-500.0,0.00016573,2]
[350895009,1738180238538,-500.0,0.00016575,2]
[350895011,1738180238547,-500.0,0.00016575,2]
[350895013,1738180238558,-500.0,0.00016575,2]
[350895014,1738180238567,-500.0,0.00016575,2]
[350895016,1738180238576,-500.0,0.00016575,2]
[350895018,1738180238586,-500.0,0.00016575,2]
[350895020,1738180238596,-500.0,0.00016575,2]
[350895022,1738180238606,-500.0,0.00016575,2]
[350895024,1738180238615,-500.0,0.00016575,2]
[350895026,1738180238625,-500.0,0.00016575,2]
[350895028,1738180238635,-500.0,0.00016575,2]
[350895029,1738180238644,-500.0,0.00016575,2]
[350895032,1738180238654,-500.0,0.00016575,2]
[350895034,1738180238663,-149.72717025,0.00016575,2]
[350895036,1738180238675,-350.27282975,0.00016575,2]
[350895038,1738180238691,-500.0,0.00016575,2]
[350895040,1738180238703,-500.0,0.00016575,2]
[350895042,1738180238712,-500.0,0.00016575,2]
[350895043,1738180238722,-500.0,0.00016575,2]
[350895045,1738180238731,-500.0,0.00016575,2]
[350895047,1738180238740,-312.92717025,0.00016575,2]
[350895049,1738180238753,-297.51282975,0.00016575,2]
[350895051,1738180238762,-500.0,0.00016575,2]
[350895053,1738180238772,-225.08717025,0.00016575,2]
[350895055,1738180238783,-810.05282975,0.00016575,2]
[350895057,1738180238792,-282.27304252,0.00016575,2]
[350895279,1738180244224,-1934.41,0.00016438,2]
[350895281,1738180244350,-500.0,0.00016438,2]
[350895282,1738180244360,-4728.52,0.00016438,2]
[350895283,1738180244370,-3638.13,0.00016438,2]
[350895284,1738180244381,-501.09216767,0.00016438,2]
[350895285,1738180244390,-217.72695748,0.00016575,2]
[350895288,1738180244404,-500.0,0.00016575,2]
[350895289,1738180244413,-500.0,0.00016575,2]
[350895290,1738180244423,-500.0,0.00016575,2]
[350895291,1738180244432,-500.0,0.00016575,2]
[350895292,1738180244446,-321.59945537,0.00016575,2]
[350895293,1738180244455,-500.0,0.00016575,2]
[350895294,1738180244464,-500.0,0.00016575,2]
[350895295,1738180244474,-629.68042673,0.00016575,2]
[350895296,1738180244483,-549.87,0.00016575,2]
[350895297,1738180244492,-500.0,0.00016575,2]
[350895299,1738180244501,-500.0,0.00016575,2]
[350895301,1738180244510,-500.0,0.00016575,2]
[350895303,1738180244520,-500.0,0.00016575,2]
[350895305,1738180244529,-500.0,0.00016575,2]
[350895306,1738180244539,-500.0,0.00016575,2]
[350895308,1738180244551,-507.25544204,0.00016575,2]
[350895310,1738180244560,-1499.13,0.00016575,2]
[350895312,1738180244569,-500.0,0.00016575,2]
[350895314,1738180244578,-500.0,0.00016575,2]
[350895316,1738180244587,-500.0,0.00016575,2]
[350895318,1738180244596,-500.0,0.00016575,2]
[350895320,1738180244606,-500.0,0.00016575,2]
[350895322,1738180244615,-500.0,0.00016575,2]
[350895324,1738180244624,-500.0,0.00016575,2]
[350895326,1738180244633,-500.0,0.00016575,2]
[350895327,1738180244642,-500.0,0.00016575,2]
[350895329,1738180244652,-438.70676401,0.00016575,2]
[350895330,1738180244661,-500.0,0.00016575,2]
[350895332,1738180244670,-500.0,0.00016575,2]
[350895334,1738180244679,-151.0,0.00016575,2]
[350895336,1738180244692,-500.0,0.00016575,2]
[350895338,1738180244702,-508.76895662,0.00016575,2]
[350895340,1738180244711,-500.0,0.00016575,2]
[350895342,1738180244721,-947.54,0.00016575,2]
[350895344,1738180244730,-1632.27,0.00016575,2]
[350895346,1738180244739,-719.69,0.00016575,2]
[350895348,1738180244748,-151.0,0.00016575,2]
[350895350,1738180244757,-500.0,0.00016575,2]
[350895352,1738180244766,-500.0,0.00016575,2]
[350895354,1738180244776,-2038.21,0.00016575,2]
[350895356,1738180244785,-1560.86,0.00016575,2]
[350895358,1738180244793,-630.81,0.00016575,2]
[350895360,1738180244802,-661.13,0.00016575,2]
[350895362,1738180244812,-500.0,0.00016575,2]
[350895364,1738180244821,-540.19,0.00016575,2]
[350895366,1738180244830,-1738.2,0.00016575,2]
[350895368,1738180244839,-7376.56,0.00016575,2]
[350895370,1738180244848,-2696.12,0.00016575,2]
[350895372,1738180244857,-892.66066008,0.00016575,2]
[350895374,1738180244869,-1856.84192456,0.00016575,2]
[350895375,1738180244880,-6507.91504273,0.00016575,2]
[350895378,1738180244928,-470.20306775,0.00016438,2]
[350895379,1738180244943,-29.79693225,0.00016438,2]
[350895380,1738180244956,-712.70554635,0.00016575,2]
[350895382,1738180244968,-9703.80538906,0.00016575,2]
[350895384,1738180244980,-692.13600239,0.00016575,2]
[350895385,1738180244992,-938.364,0.00016575,2]
[350895387,1738180245003,-3729.56143483,0.00016575,2]
[350895389,1738180245016,-500.0,0.00016575,2]
[350895391,1738180245025,-500.0,0.00016575,2]
[350895393,1738180245035,-151.0,0.00016575,2]
[350895395,1738180245044,-524.47,0.00016575,2]
[350895397,1738180245054,-549.0,0.00016575,2]
[350895398,1738180245063,-1352.05,0.00016575,2]
[350895400,1738180245072,-365.71458528,0.00016575,2]
[350895403,1738180245082,-257.81925144,0.00016575,2]
[350895404,1738180245091,-533.26,0.00016575,2]
[350895406,1738180245101,-500.0,0.00016575,2]
[350895408,1738180245110,-849.48,0.00016575,2]
[350895410,1738180245119,-682.92,0.00016575,2]
[350895411,1738180245129,-2048.22,0.00016575,2]
[350895413,1738180245139,-457.16452811,0.00016575,2]
[350895415,1738180245148,-500.0,0.00016575,2]
[350895416,1738180245157,-151.0,0.00016575,2]
[350895418,1738180245167,-1113.49,0.00016575,2]
[350895419,1738180245177,-500.0,0.00016575,2]
[350895420,1738180245186,-2020.3,0.00016575,2]
[350895421,1738180245201,-945.45,0.00016575,2]
[350895422,1738180245211,-1021.7,0.00016575,2]
[350895423,1738180245220,-500.0,0.00016575,2]
[350895424,1738180245229,-825.66,0.00016575,2]
[350895425,1738180245238,-500.0,0.00016575,2]
[350895426,1738180245247,-580.29,0.00016575,2]
[350895427,1738180245259,-572.43,0.00016575,2]
[350895428,1738180245272,-500.0,0.00016575,2]
[350895429,1738180245283,-1129.3,0.00016575,2]
[350895430,1738180245295,-1058.33,0.00016575,2]
[350895431,1738180245306,-500.0,0.00016575,2]
[350895432,1738180245316,-4694.58450767,0.00016575,2]
[350895433,1738180245329,-936.96,0.00016575,2]
[350895434,1738180245451,-3263.74648614,0.00016575,2]
[350895435,1738180245468,-2036.87900619,0.00016575,2]
[350895436,1738180245483,-500.0,0.00016575,2]
[350895437,1738180245501,-2708.91,0.00016575,2]
[350895438,1738180245510,-500.0,0.00016575,2]
[350895439,1738180245521,-486.87431542,0.00016575,2]
[350895452,1738180246573,-13.12568458,0.00016575,2]
[350895453,1738180246585,-329.35431552,0.00016575,2]
[350895454,1738180246598,-170.64568448,0.00016575,2]
[350895455,1738180246610,-852.86,0.00016575,2]
[350895456,1738180246620,-500.0,0.00016575,2]
[350895457,1738180246630,-500.0,0.00016575,2]
[350895458,1738180246639,-500.0,0.00016575,2]
[350895459,1738180246649,-500.0,0.00016575,2]
[350895460,1738180246658,-72.28801495,0.00016575,2]
[350895461,1738180246673,-427.71198505,0.00016575,2]
[350895462,1738180246683,-291.15840725,0.00016575,2]
[350895463,1738180246698,-1934.41,0.00016575,2]
[350895464,1738180246707,-1114.16419738,0.00016575,2]
[350895516,1738180518531,161.025952,0.00013973,2]
[350895617,1738180932175,10000.0,0.00018,30]
[350895618,1738180942746,3370.07,0.00018,30]
[350895619,1738180955130,991.999999,0.0002256,120]
[350895620,1738180967640,3237.65,0.00018,30]
[350895622,1738181347841,-300.0,0.00015436,2]
[350895623,1738181347880,-13250.8567309,0.00015437,2]
[350895688,1738181432651,-500.0,0.00015663,2]
[350895690,1738181432660,-802.82965133,0.00016337,2]
[350895692,1738181432670,-300.0,0.00016384,2]
[350895694,1738181432679,-10882.59044237,0.00016385,2]
[350895697,1738181432694,-3000.0,0.000164,2]
[350895699,1738181432703,-500.0,0.00016437,2]
[350895700,1738181432712,-500.0,0.00016437,2]
[350895702,1738181432721,-453.52729465,0.00016437,2]
[350895704,1738181432731,-500.0,0.00016437,2]
[350895706,1738181432740,-500.0,0.00016437,2]
[350895708,1738181432749,-500.0,0.00016437,2]
[350895710,1738181432759,-500.0,0.00016437,2]
[350895712,1738181432768,-500.0,0.00016437,2]
[350895714,1738181432777,-500.0,0.00016437,2]
[350895716,1738181432788,-307.74821219,0.00016437,2]
[350895718,1738181432797,-500.0,0.00016437,2]
[350895720,1738181432806,-500.0,0.00016437,2]
[350895722,1738181432816,-393.06725973,0.00016437,2]
[350895724,1738181432825,-450.0,0.00016437,2]
[350895726,1738181432834,-500.0,0.00016437,2]
[350895728,1738181432843,-500.0,0.00016437,2]
[350895730,1738181432852,-500.0,0.00016437,2]
[350895732,1738181432862,-500.0,0.00016437,2]
[350895734,1738181432871,-500.0,0.00016437,2]
[350895736,1738181432880,-500.0,0.00016437,2]
[350895737,1738181432890,-500.0,0.00016437,2]
[350895739,1738181432899,-500.0,0.00016437,2]
[350895741,1738181432908,-500.0,0.00016437,2]
[350895743,1738181432918,-500.0,0.00016437,2]
[350895745,1738181432927,-500.0,0.00016437,2]
[350895747,1738181432941,-500.0,0.00016437,2]
[350895749,1738181432951,-500.0,0.00016437,2]
[350895751,1738181432960,-500.0,0.00016437,2]
[350895753,1738181432970,-500.0,0.00016437,2]
[350895755,1738181432979,-500.0,0.00016437,2]
[350895757,1738181432988,-500.0,0.00016437,2]
[350895759,1738181432997,-500.0,0.00016437,2]
[350895761,1738181433007,-500.0,0.00016437,2]
[350895763,1738181433017,-500.0,0.00016437,2]
[350895765,1738181433027,-500.0,0.00016437,2]
[350895767,1738181433036,-500.0,0.00016437,2]
[350895769,1738181433047,-500.0,0.00016437,2]
[350895771,1738181433057,-500.0,0.00016437,2]
[350895773,1738181433066,-500.0,0.00016437,2]
[350895775,1738181433076,-500.0,0.00016437,2]
[350895777,1738181433086,-500.0,0.00016437,2]
[350895779,1738181433097,-500.0,0.00016437,2]
[350895781,1738181433106,-500.0,0.00016437,2]
[350895783,1738181433117,-608.04729692,0.00016437,2]
[350895785,1738181433127,-300.0,0.00016437,2]
[350895787,1738181433136,-500.0,0.00016437,2]
[350895789,1738181433145,-393.36955938,0.00016437,2]
[350895791,1738181433155,-500.0,0.00016437,2]
[350895793,1738181433165,-500.0,0.00016437,2]
[350895795,1738181433174,-500.0,0.00016437,2]
[350895797,1738181433184,-500.0,0.00016437,2]
[350895799,1738181433200,-500.0,0.00016437,2]
[350895801,1738181433209,-500.0,0.00016437,2]
[350895804,1738181433219,-505.32311235,0.00016437,2]
[350895805,1738181433229,-500.0,0.00016437,2]
[350895807,1738181433239,-192.28844134,0.00016438,2]
[350895809,1738181433248,-500.0,0.00016438,2]
[350895812,1738181433258,-500.0,0.00016438,2]
[350895814,1738181433268,-501.32512999,0.00016438,2]
[350895815,1738181433279,-501.73407813,0.00016438,2]
[350895817,1738181433288,-500.0,0.00016438,2]
[350895819,1738181433299,-504.27543403,0.00016438,2]
[350895821,1738181433308,-500.0,0.00016438,2]
[350895823,1738181433317,-500.0,0.00016438,2]
[350895825,1738181433327,-500.0,0.00016438,2]
[350895827,1738181433338,-480.67277355,0.00016438,2]
[350895829,1738181433351,-500.0,0.00016438,2]
[350895831,1738181433361,-500.0,0.00016438,2]
[350895833,1738181433370,-500.0,0.00016438,2]
[350895835,1738181433380,-500.0,0.00016438,2]
[350895837,1738181433391,-501.73770138,0.00016438,2]
[350895839,1738181433400,-500.0,0.00016438,2]
[350895841,1738181433410,-500.0,0.00016438,2]
[350895842,1738181433422,-372.5,0.00016438,2]
[350895844,1738181433431,-500.0,0.00016438,2]
[350895846,1738181433444,-500.0,0.00016438,2]
[350895848,1738181433454,-618.31968685,0.00016438,2]
[350895849,1738181433464,-266.38288378,0.00016438,2]
[350895851,1738181433474,-500.0,0.00016438,2]
[350895853,1738181433484,-500.0,0.00016438,2]
[350895855,1738181433495,-500.0,0.00016438,2]
[350895856,1738181433505,-500.0,0.00016438,2]
[350895858,1738181433515,-500.0,0.00016438,2]
[350895859,1738181433525,-500.0,0.00016438,2]
[350895861,1738181433535,-500.0,0.00016438,2]
[350895863,1738181433544,-500.0,0.00016438,2]
[350895865,1738181433554,-500.0,0.00016438,2]
[350895867,1738181433564,-500.0,0.00016438,2]
[350895868,1738181433573,-500.0,0.00016438,2]
[350895870,1738181433584,-500.0,0.00016438,2]
[350895872,1738181433594,-593.05730107,0.00016438,2]
[350895874,1738181433603,-486.18651259,0.00016438,2]
[350895876,1738181433614,-500.0,0.00016438,2]
[350895878,1738181433624,-500.0,0.00016438,2]
[350895879,1738181433633,-500.0,0.00016438,2]
[350895880,1738181433643,-502.21139909,0.00016438,2]
[350895881,1738181433653,-500.0,0.00016438,2]
[350895882,1738181433662,-500.0,0.00016438,2]
[350895883,1738181433671,-503.91749604,0.00016438,2]
[350895884,1738181433681,-500.0,0.00016438,2]
[350895885,1738181433696,-500.0,0.00016438,2]
[350895886,1738181433707,-529.51768154,0.00016438,2]
[350895887,1738181433718,-500.0,0.00016438,2]
[350895888,1738181433728,-500.0,0.00016438,2]
[350895889,1738181433738,-500.0,0.00016438,2]
[350895890,1738181433748,-500.0,0.00016438,2]
[350895891,1738181433758,-500.0,0.00016438,2]
[350895892,1738181433768,-549.71208941,0.00016438,2]
[350895893,1738181433778,-500.0,0.00016438,2]
[350895894,1738181433787,-500.0,0.00016438,2]
[350895895,1738181433797,-606.30416901,0.00016438,2]
[350895896,1738181433807,-500.0,0.00016438,2]
[350895897,1738181433817,-500.0,0.00016438,2]
[350895898,1738181433827,-500.0,0.00016438,2]
[350895899,1738181433837,-706.38,0.00016438,2]
[350895900,1738181433846,-500.0,0.00016438,2]
[350895901,1738181433856,-500.0,0.00016438,2]
[350895902,1738181433866,-500.0,0.00016438,2]
[350895903,1738181433876,-500.0,0.00016438,2]
[350895904,1738181433886,-508.10824893,0.00016438,2]
[350895905,1738181433895,-500.0,0.00016438,2]
[350895906,1738181433905,-500.0,0.00016438,2]
[350895907,1738181433914,-500.0,0.00016438,2]
[350895908,1738181433924,-500.0,0.00016438,2]
[350895909,1738181433934,-501.80675615,0.00016438,2]
[350895910,1738181433946,-500.0,0.00016438,2]
[350895911,1738181433955,-500.0,0.00016438,2]
[350895912,1738181433965,-538.34253822,0.00016438,2]
[350895913,1738181433979,-500.0,0.00016438,2]
[350895914,1738181433989,-500.0,0.00016438,2]
[350895915,1738181433999,-500.0,0.00016438,2]
[350895916,1738181434009,-500.0,0.00016438,2]
[350895917,1738181434019,-500.0,0.00016438,2]
[350895918,1738181434028,-500.0,0.00016438,2]
[350895919,1738181434038,-500.0,0.00016438,2]
[350895920,1738181434047,-500.0,0.00016438,2]
[350895921,1738181434056,-500.0,0.00016438,2]
[350895922,1738181434066,-500.0,0.00016438,2]
[350895923,1738181434075,-933.51,0.00016438,2]
[350895924,1738181434085,-500.0,0.00016438,2]
[350895925,1738181434238,-500.0,0.00016438,2]
[350895926,1738181434248,-500.0,0.00016438,2]
[350895927,1738181434258,-500.0,0.00016438,2]
[350895928,1738181434268,-500.0,0.00016438,2]
[350895929,1738181434278,-500.0,0.00016438,2]
[350895930,1738181434288,-500.0,0.00016438,2]
[350895931,1738181434298,-500.0,0.00016438,2]
[350895932,1738181434308,-500.0,0.00016438,2]
[350895933,1738181434318,-500.0,0.00016438,2]
[350895934,1738181434331,-500.0,0.00016438,2]
[350895935,1738181434342,-500.0,0.00016438,2]
[350895936,1738181434352,-500.0,0.00016438,2]
[350895937,1738181434362,-500.0,0.00016438,2]
[350895938,1738181434373,-506.95106983,0.00016438,2]
[350895939,1738181434384,-500.0,0.00016438,2]
[350895940,1738181434394,-533.25,0.00016438,2]
[350895941,1738181434404,-500.0,0.00016438,2]
[350895942,1738181434414,-500.0,0.00016438,2]
[350895943,1738181434424,-500.0,0.00016438,2]
[350895944,1738181434434,-511.76498727,0.00016438,2]
[350895945,1738181434446,-518.47558847,0.00016438,2]
[350895946,1738181434456,-500.0,0.00016438,2]
[350895947,1738181434466,-533.28987329,0.00016438,2]
[350895948,1738181434475,-500.0,0.00016438,2]
[350895949,1738181434486,-510.27740731,0.00016438,2]
[350895950,1738181434496,-500.0,0.00016438,2]
[350895951,1738181434506,-500.0,0.00016438,2]
[350895952,1738181434515,-500.0,0.00016438,2]
[350895953,1738181434525,-500.0,0.00016438,2]
[350895954,1738181434535,-500.0,0.00016438,2]
[350895955,1738181434546,-237.03788105,0.00016438,2]
[350895956,1738181434555,-500.0,0.00016438,2]
[350895957,1738181434565,-500.0,0.00016438,2]
[350895958,1738181434574,-200.0,0.00016438,2]
[350895959,1738181434583,-500.0,0.00016438,2]
[350895960,1738181434593,-500.0,0.00016438,2]
[350895961,1738181434603,-500.0,0.00016438,2]
[350895962,1738181434613,-500.0,0.00016438,2]
[350895963,1738181434622,-500.0,0.00016438,2]
[350895964,1738181434632,-730.85,0.00016438,2]
[350895965,1738181434642,-500.0,0.00016438,2]
[350895966,1738181434651,-500.0,0.00016438,2]
[350895967,1738181434661,-500.0,0.00016438,2]
[350895968,1738181434670,-500.0,0.00016438,2]
[350895969,1738181434680,-500.0,0.00016438,2]
[350895970,1738181434693,-500.0,0.00016438,2]
[350895971,1738181434703,-500.0,0.00016438,2]
[350895972,1738181434712,-500.0,0.00016438,2]
[350895973,1738181434722,-500.0,0.00016438,2]
[350895974,1738181434732,-500.0,0.00016438,2]
[350895975,1738181434742,-655.49,0.00016438,2]
[350895976,1738181434751,-1136.38,0.00016438,2]
[350895977,1738181434761,-500.0,0.00016438,2]
[350895978,1738181434770,-500.0,0.00016438,2]
[350895979,1738181434780,-500.0,0.00016438,2]
[350895980,1738181434789,-583.71,0.00016438,2]
[350895981,1738181434798,-500.0,0.00016438,2]
[350895982,1738181434807,-534.24,0.00016438,2]
[350895983,1738181434817,-500.0,0.00016438,2]
[350895984,1738181434826,-697.17,0.00016438,2]
[350895985,1738181434835,-500.0,0.00016438,2]
[350895986,1738181434845,-500.0,0.00016438,2]
[350895987,1738181434854,-500.0,0.00016438,2]
[350895988,1738181434864,-255.02631378,0.00016438,2]
[350895989,1738181434873,-500.0,0.00016438,2]
[350895990,1738181434884,-500.0,0.00016438,2]
[350895991,1738181434895,-563.77,0.00016438,2]
[350895992,1738181434905,-500.0,0.00016438,2]
[350895993,1738181434915,-500.0,0.00016438,2]
[350895994,1738181434925,-1621.48,0.00016438,2]
[350895995,1738181434935,-500.0,0.00016438,2]
[350895996,1738181434954,-500.0,0.00016438,2]
[350895997,1738181434963,-500.0,0.00016438,2]
[350895998,1738181434973,-948.46,0.00016438,2]
[350895999,1738181434983,-3486.54,0.00016438,2]
[350896000,1738181434992,-500.0,0.00016438,2]
[350896001,1738181435002,-418.7933694,0.00016438,2]
[350896002,1738181435012,-500.0,0.00016438,2]
[350896003,1738181435021,-524.93,0.00016438,2]
[350896004,1738181435031,-500.0,0.00016438,2]
[350896005,1738181435041,-500.0,0.00016438,2]
[350896006,1738181435050,-500.0,0.00016438,2]
[350896007,1738181435062,-1921.68,0.00016438,2]
[350896008,1738181435071,-500.0,0.00016438,2]
[350896009,1738181435081,-500.0,0.00016438,2]
[350896010,1738181435090,-541.56,0.00016438,2]
[350896011,1738181435100,-500.0,0.00016438,2]
[350896012,1738181435110,-457.71152671,0.00016438,2]
[350896013,1738181435119,-500.0,0.00016438,2]
[350896014,1738181435129,-2154.33,0.00016438,2]
[350896015,1738181435139,-768.99,0.00016438,2]
[350896016,1738181435148,-500.0,0.00016438,2]
[350896017,1738181435158,-500.0,0.00016438,2]
[350896018,1738181435168,-1119.08,0.00016438,2]
[350896019,1738181435178,-500.0,0.00016438,2]
[350896020,1738181435192,-645.57948154,0.00016438,2]
[350896021,1738181435201,-500.0,0.00016438,2]
[350896022,1738181435211,-500.0,0.00016438,2]
[350896023,1738181435221,-1785.98,0.00016438,2]
[350896024,1738181435231,-833.91,0.00016438,2]
[350896025,1738181435241,-500.0,0.00016438,2]
[350896026,1738181435251,-314.23010593,0.00016438,2]
[350896027,1738181435260,-500.0,0.00016438,2]
[350896028,1738181435270,-500.0,0.00016438,2]
[350896029,1738181435280,-394.37456099,0.00016438,2]
[350896030,1738181435290,-500.0,0.00016438,2]
[350896031,1738181435299,-500.0,0.00016438,2]
[350896032,1738181435309,-500.0,0.00016438,2]
[350896033,1738181435319,-669.91,0.00016438,2]
[350896034,1738181435329,-500.0,0.00016438,2]
[350896035,1738181435340,-500.0,0.00016438,2]
[350896036,1738181435351,-500.0,0.00016438,2]
[350896037,1738181435360,-8298.98,0.00016438,2]
[350896038,1738181435370,-500.0,0.00016438,2]
[350896039,1738181435380,-500.0,0.00016438,2]
[350896040,1738181435389,-1714.77,0.00016438,2]
[350896041,1738181435399,-686.77,0.00016438,2]
[350896042,1738181435409,-500.0,0.00016438,2]
[350896043,1738181435422,-752.81,0.00016438,2]
[350896044,1738181435432,-500.0,0.00016438,2]
[350896045,1738181435446,-500.0,0.00016438,2]
[350896046,1738181435456,-500.0,0.00016438,2]
[350896047,1738181435466,-250.62191906,0.00016438,2]
[350896048,1738181435476,-500.0,0.00016438,2]
[350896049,1738181435485,-500.0,0.00016438,2]
[350896050,1738181435495,-500.0,0.00016438,2]
[350896051,1738181435504,-500.0,0.00016438,2]
[350896052,1738181435514,-500.0,0.00016438,2]
[350896053,1738181435524,-728.61,0.00016438,2]
[350896054,1738181435535,-500.0,0.00016438,2]
[350896055,1738181435545,-500.0,0.00016438,2]
[350896056,1738181435556,-500.0,0.00016438,2]
[350896057,1738181435566,-529.17,0.00016438,2]
[350896058,1738181435576,-500.0,0.00016438,2]
[350896059,1738181435585,-500.0,0.00016438,2]
[350896060,1738181435594,-500.0,0.00016438,2]
[350896061,1738181435604,-500.0,0.00016438,2]
[350896062,1738181435614,-500.0,0.00016438,2]
[350896063,1738181435623,-1638.95,0.00016438,2]
[350896064,1738181435633,-500.0,0.00016438,2]
[350896065,1738181435643,-500.0,0.00016438,2]
[350896066,1738181435652,-500.0,0.00016438,2]
[350896067,1738181435662,-500.0,0.00016438,2]
[350896068,1738181435671,-27764.39,0.00016438,2]
[350896069,1738181435680,-500.0,0.00016438,2]
[350896070,1738181435695,-618.28438695,0.00016438,2]
[350896071,1738181435704,-500.0,0.00016438,2]
[350896072,1738181435713,-2544.82,0.00016438,2]
[350896073,1738181435723,-500.0,0.00016438,2]
[350896074,1738181435732,-1484.5,0.00016438,2]
[350896075,1738181435741,-500.0,0.00016438,2]
[350896076,1738181435751,-500.0,0.00016438,2]
[350896077,1738181435760,-220.65596191,0.00016438,2]
[350896078,1738181435770,-500.0,0.00016438,2]
[350896079,1738181435779,-500.0,0.00016438,2]
[350896080,1738181435791,-500.0,0.00016438,2]
[350896081,1738181435801,-813.51,0.00016438,2]
[350896082,1738181435810,-500.0,0.00016438,2]
[350896083,1738181435819,-500.0,0.00016438,2]
[350896084,1738181435829,-945.36,0.00016438,2]
[350896085,1738181435839,-500.0,0.00016438,2]
[350896086,1738181435850,-500.0,0.00016438,2]
[350896087,1738181435859,-500.0,0.00016438,2]
[350896088,1738181435868,-2361.45,0.00016438,2]
[350896089,1738181435878,-500.0,0.00016438,2]
[350896090,1738181435888,-500.0,0.00016438,2]
[350896091,1738181435897,-500.0,0.00016438,2]